Workbook

Sheet Balanza Comprobacion
D1: Diferencia para control debe ser cero
D2: Servicio Nacional de Salud
D3: Balanza de comprobación
D4: Al 31 de enero de 2025
D5: (Valores en RD$)
B8: ** | D8: Cuentas | E8: DB | F8: CR
B9: 0001 | C9: 0001 | D9: Efectivo y Banco
B10: 0004 | D10: Cuentas por cobrar funcionarios y empleados
B11: 0005 | D11: Inventario
B12: 0006 | D12: Pagos anticipados
B13: 0012 | D13: Mobiliarios y equipos de oficina
B14: 0012 | D14: Depreciación acumulada
B16: ** | D16: PASIVOS
B17: 0016 | D17: Cuentas por pagar a corto plazo
B18: 0019 | D18: Retenciones y acumulaciones por pagar
D19: Beneficios a empleados a corto plazo
D20: Cuentas por pagar a largo plazo
D21: Beneficios a empleados a largo plazo
D22: Capital
B23: 0033 | D23: Resultado acumulado
B24: 0032 | D24: Resultado del período
D25: Ajustes
B26: 0037 | D26: Ingresos
B27: 0039 | C27: 0010 | D27: Sueldos fijos
B28: 0039 | C28: 0011 | D28: Sueldos al personal contratado y/o igualado
B29: 0039 | C29: 0012 | D29: Sueldos al personal fijo en trámite de pensiones
B30: 0039 | D30: Sueldos al personal por servicios especiales
B31: 0039 | C31: 0013 | D31: Sueldo anual no. 13
B32: 0039 | C32: 0014 | D32: Proporción de vacaciones no disfrutadas
B33: 0039 | D33: Incentivos y escalafón
D34: SOBRESUELDOS
D35: Prestación laboral por desvinculación
D36: Compensaciones especiales
D37: Primas por antigüedad
B38: 0039 | C38: 0015 | D38: Compensación por horas extraordinarias
D39: Compensación por servicio de seguridad
D40: Compensaciones por resultado
D41: Compensación por distancia
B42: 0039 | D42: Pago de horas extraordinarias, Horas extraordinarias fin de año (Reglamento 523-09)
B43: 0039 | C43: 0017 | D43: Bono por desempeño
D44: GRATIFICACIONES Y BONIFICACIONES
B45: 0039 | C45: 0018 | D45: Gratificaciones por aniversario de institución
D46: CONTRIBUCIONES A LA SEGURIDAD SOCIAL Y RIESGO LABORAL
B47: 0039 | C47: 0019 | D47: Contribuciones al seguro de salud
B48: 0039 | D48: Contribuciones al seguro de pensiones
B49: 0039 | D49: Contribuciones al seguro de riesgo laboral
D50: SERVICIOS NO PERSONALES
D51: SERVICIOS BÁSICOS
B52: 0044 | D52: Servicios telefónico de larga distancia
B53: 0044 | D53: Teléfono local
B54: 0044 | D54: Telefax y correo
B55: 0044 | D55: Servicio de internet y televisión por cable
B56: 0044 | D56: Energía eléctrica
D57: Agua
D58: Organización de eventos y festividades
D59: PUBLICIDAD, IMPRESIÓN Y ENCUADERNACIÓN
B60: 0044 | D60: Publicidad y propaganda
B61: 0044 | D61: Impresión y encuadernación
D62: VIÁTICOS
B63: 0044 | D63: Viáticos dentro del país
B64: 0044 | D64: Viáticos fuera del país
D65: TRANSPORTE Y ALMACENAJES
B66: 0044 | D66: Pasajes
B67: 0044 | D67: Peajes
D68: Almacenaje
D69: Fletes
D70: ALQUILERES Y RENTA
B71: 0044 | D71: Alquiler de equipo de oficina y muebles
B72: 0044 | C72: 2.2.5.4.01 | D72: Alquileres de equipos de transporte, tracción y elevación
B73: 0044 | D73: Alquilleres y rentas de edificios y locales
D74: Alquiler de equipo educacional
D75: Alquiler de equipo para computación
D76: Otros alquileres
D77: SEGUROS
B78: 0044 | D78: Seguro de bienes muebles
B79: 0044 | C79: 2.2.6.3.01 | D79: Seguro de personas
D80: CONSERV., REPS. MENORES E INSTALACIONES TEMP.
D81: Obras menores en edificaciones
D82: Obras para edificación no residencial
B83: 0044 | D83: Servicios especiales de mantenimiento y reparación
D84: Mantenimiento y reparación de obras civiles en instalaciones varias
B85: 0044 | C85: 2.2.7.1.07 | D85: Servicios de pintura y derivados con fin de higiene y embellecimiento
B86: 0044 | D86: Reparaciones de obras menores
B87: 0044 | D87: Mant. y rep. De equipo de oficina y muebles
D88: Instalaciones eléctricas
B89: 0044 | C89: 2.2.7.2.05 | D89: Mantenimiento y reparación de equipos sanitarios y de laboratorio
B90: 0044 | D90: Mant. y rep. De equipo de transporte, tracción y elevación
D91: Mantenimiento y reparación de muebles y equipos de oficina
D92: Mantenimiento y reparación de equipo para computación
D93: Equipo de telecomunicaciones y señalamiento
D94: Pinturas, Lacas, Barnices, Diluyentes y Absorbentes para Pinturas
D95: OTROS SERVICIOS NO PERSONALES
B96: 0044 | D96: Comisiones y gastos bancarios
B97: 0044 | C97: 2.2.8.3.01 | D97: Servicios sanitarios médicos y veterinarios
B98: 0044 | D98: Fumigación
B99: 0044 | C99: Activos prepagados | D99: Insecticidas, Fumigantes y Otros
B100: 0044 | C100: Activos prepagados | D100: Limpieza e higiene
B101: 0044 | D101: Eventos generales
D102: Festividades
B103: 0044 | D103: Servicios jurídicos
D104: Gastos judiciales
B105: 0044 | C105: 2.2.8.7.04 | D105: Servicios de capacitación
B106: 0044 | D106: Otros servicios técnicos profesionales
B107: 0044 | D107: Impuestos
B108: 0044 | D108: Recolección de residuos sólidos
B109: 0044 | D109: Servicios de informática y sistemas computarizados
D110: MATERIALES Y SUMINISTROS
D111: ALIMENTOS Y PRODUCTOS AGROFORESTALES
B112: 0039 | C112: 2.3.1.1.01 | D112: Alimentos y bebidas para personas
B113: 0041 | C113: 2.3.1.3.03 | D113: Productos forestales
D114: TEXTILES Y VESTUARIOS
B115: 0041 | C115: 2.3.2.1.01 | D115: Hilados y telas
B116: 0041 | C116: 2.3.2.2.01 | D116: Acabados textiles
B117: 0039 | C117: 2.3.2.3.01 | D117: Prendas de vestir
D118: PRODUCTOS DE PAPEL, CARTÓN E IMPRESO
B119: 0041 | C119: 2.3.3.1.01 | D119: Papel de escritorio
B120: 0041 | C120: 2.3.3.2.01 | D120: Productos de papel y cartón
B121: 0041 | C121: 2.3.3.3.01 | D121: Productos de artes gráficas
B122: 0039 | C122: 2.3.4.1.01 | D122: Productos medicinales para uso humano
D123: PRODUCTOS DE CUERO, CAUCHO Y PLÁSTICOS
B124: 0041 | C124: 2.3.5.2.01 | D124: Artículos de cuero
B125: 0041 | D125: Libros, revistas y periódicos
B126: 0041 | C126: 2.3.5.3.01 | D126: Llantas y neumáticos
B127: 0041 | C127: 2.3.5.4.01 | D127: Artículos de caucho
B128: 0041 | C128: 2.3.5.5.01 | D128: Artículos de plástico
D129: PRODUCTOS DE MINERALES, METÁLICOS Y NO METÁLICOS
B130: 0041 | D130: Metales y piedras preciosas
B131: 0041 | C131: 2.3.6.1.01 | D131: Productos de cemento
D132: Productos de porcelana
B133: 0041 | C133: 2.3.6.1.04 | D133: Productos de yeso
B134: 0041 | C134: 2.3.6.2.01 | D134: Productos de vidrio
B135: 0041 | C135: 2.3.6.3.01 | D135: Productos ferrosos
B136: 0041 | C136: 2.3.6.3.02 | D136: Productos no ferrosos
D137: Productos fotoquímicos
B138: 0041 | D138: Herramientas menores
B139: 0041 | D139: Productos de hojalata
B140: 0041 | C140: 2.3.6.3.06 | D140: Accesorios de metal
B141: 0041 | D141: Piedra, arcilla y arena
D142: COMBUSTIBLES, LUBRICANTES, PRODUCTOS QUÍMICOS Y CONEXOS
D143: Gas GLP
B144: 0041 | C144: 2.3.7.1.01 | D144: Gasolina
B145: 0041 | C145: 2.3.7.1.02 | D145: Gasoil
B146: 0041 | D146: Aceites y grasas
B147: 0041 | D147: Lubricantes
B148: 0041 | C148: 2.3.7.2.03 | D148: Productos químicos de laboratorio y de uso personal
B149: 0041 | C149: 2.3.7.2.05 | D149: Insecticidas, fumigantes y otros
B150: 0041 | C150: 2.3.7.2.06 | D150: Pinturas, lacas, barnices, diluyentes y absorbentes para pinturas
D151: PRODUCTOS Y ÚTILES VARIOS
B152: 0041 | C152: 2.3.9.1.01 | D152: Material para limpieza
B153: 0041 | C153: 2.3.9.2.01 | D153: Útiles de escritorio, oficina e informática
B154: 0041 | C154: 2.3.9.3.01 | D154: Útiles menores médico quirurgicos
D155: Utiles de cocina y comedor
B156: 0041 | D156: Utiles menores médico quirurgicos y de laboratorio
B157: 0041 | C157: 2.3.9.6.01 | D157: Productos eléctricos y afines
B158: 0041 | C158: 2.3.9.8.01 | D158: Otros repuestos y accesorios menores
B159: 0041 | C159: 2.3.9.9.01 | D159: Productos y Utiles Varios n.i.p
B160: 0039 | C160: 2.3.9.9.02 | D160: Bonos para útiles diversos
B161: 0041 | C161: 2.3.6.4.07 | D161: Minerales
B162: 0041 | C162: 2.3.9.5.01 | D162: Útiles de cocina y comedor
B164: 0044 | D164: Otros
D165: TRANSFERENCIAS CORRIENTES
B166: 0040 | C166: 2.4.1.2.02 | D166: Ayudas y donaciones ocacionales a hogares y personas
B167: 0039 | C167: 2.4.1.4.01 | D167: Becas nacionales
B168: 0039 | C168: 2.4.1.4.02 | D168: Becas extranjeras
B169: 0040 | D169: Transferencia Por Disminucion Deuda Publica y Otras
B170: 0042 | C170: 2.4.1.6.01 | D170: Transferencias corrientes a asociaciones sin fines de lucro
D171: Transferencias corrientes
B172: 0040 | D172: Anticipos Financieros
B173: 0042 | D173: Gasto de depreciación
B174: 0042 | D174: Gasto de amortización
B175: 0044 | D175: Pérdida por retiro
D176: Gasto de amortización
D177: Otros Gastos
D178: Comisiones y gastos bancarios
D179: Balance | E179: =SUM(E9:E178) -> 0 | F179: =SUM(F9:F178) -> 0
J180: =+E179-F179 -> 0
E194: 50.00 | F194: 50.25
E195: =+E194*F194 -> 2,512.50

Sheet Est. Situacion F.
C2: Hospital Regional Ing. Luis L. Bogaert
C3: Estado de Situación Financiera
C4: Al 31 de agosto de 2025
C5: (Valores en RD$)
F7: 2025 | H7: =+[1]BC!G11 -> 2016
A8: Mapeo | C8: Activos
C9: Activos corrientes
A10: 0001 | D10: Efectivo y equivalentes de efectivo (Nota 7) | F10: =+Efectivo!C36 -> 7,634,187.40
A11: 0002 | D11: Inversiones a corto plazo (Nota 8)
A12: 0003 | D12: Porción corriente de documentos por cobrar (Nota 9)
A13: 0004 | D13: Cuenta por cobrar a corto plazo (Notas 8) | F13: ='Cuenta por Cobrar'!B16 -> 12,641,825.49
A14: 0005 | D14: Inventarios (Nota 9)
A15: 0006 | D15: Pagos anticipados (Nota 12) | F15: 0
A16: 0007 | D16: Otros activos corrientes (Nota 13)
C17: Total activos corrientes | F17: =SUM(F9:F16) -> 20,276,012.89 | H17: =SUM(H9:H16) -> 0
C19: Activos no corrientes
A20: 0008 | D20: Cuentas por cobrar a largo plazo (Notas 14)
A21: 0009 | D21: Documentos por cobrar (Nota 15)
A22: 0010 | D22: Inversiones a largo plazo (Nota 16)
A23: 0011 | D23: Otros activos financieros (Notas 17)
A24: 0012 | D24: Mobiliarios y equipos neto (Nota 10) | F24: =+'Balanza Comprobacion'!E13-'Balanza Comprobacion'!F14 -> 0
A25: 0013 | D25: Activos intangibles (Nota 10)
A26: 0014 | D26: Otros activos no financieros (Nota 20)
C27: Total activos no corrientes | F27: =SUM(F20:F26) -> 0 | H27: =SUM(H20:H26) -> 0
C29: Total activos | F29: =SUM(F27,F17) -> 20,276,012.89 | H29: =SUM(H27,H17) -> 0
C31: Pasivos
C32: Pasivos corrientes
A33: 0015 | D33: Sobregiro bancario (Nota 21)
A34: 0016 | D34: Cuentas por pagar a corto plazo (Nota 11) | F34: ='CXP Corto plazo'!B11 -> 2,267,872.10
A35: 0017 | D35: Préstamos a corto plazo (Nota 23)
A36: 0018 | D36: Parte corriente de préstamos a largo plazo (Nota 24)
A37: 0019 | D37: Retenciones y acumulaciones por pagar (Nota 12) | F37: ='Retenciones y Acum.'!B12 -> 72,495.38
A38: 0020 | D38: Provisiones a corto plazo (Nota 26)
A39: 0021 | D39: Beneficios a empleados a corto plazo (Nota 13) | F39: ='Benef. Empl x p Corto Plazo'!B13 -> 24,100.00
A40: 0022 | D40: Pensiones (Nota 28)
A41: 0023 | D41: Otros pasivos corrientes (Nota 29)
C42: Total pasivos corrientes | F42: =SUM(F33:F41) -> 2,364,467.48 | H42: =SUM(H33:H41) -> 0
C44: Pasivos no corrientes
A45: 0024 | D45: Cuentas por pagar a largo plazo (Nota 14) | F45: =+'CXP Largo Plazo'!B13 -> 1,734,190.21
A46: 0025 | D46: Préstamos a largo plazo (Nota 31)
A47: 0026 | D47: Instrumentos de deuda (Nota 32)
A48: 0027 | D48: Provisiones a largo plazo (Nota 33)
A49: 0028 | D49: Beneficios a empleados a largo plazo (Nota 15)
A50: 0029 | D50: Otros pasivos no corrientes (Nota 35)
C51: Total pasivos no corrientes | F51: =+F45+F49 -> 1,734,190.21
C52: Total pasivos | F52: =+F42+F51 -> 4,098,657.69 | H52: =SUM(H42,H51) -> 0
C54: Activos Netos/Patrimonio (Nota 16)
A55: 0030 | D55: Capital | F55: =F29-F52-F57 -> 15,076,680.17
A56: 0031 | D56: Reservas
A57: 0032 | D57: Resultados positivos (ahorro) / negativo (desahorro) | F57: =+'Est. Resultado F.'!F29 -> 1,100,675.03
A58: 0033 | D58: Resultados acumulados
A59: 0034 | D59: Intereses minoritarios
C60: Total activos netos/patrimonio | F60: =+F55+F57+F58 -> 16,177,355.20
C62: Total pasivos y activos netos/patrimonio | F62: =+F52+F60 -> 20,276,012.89 | H62: =+H52+H60 -> 0 | J62: =+F29-F62 -> 0
D68: Jean Flores | F68: Lic. Jenniffer Rodríguez
D69: Administrador | F69: Contador
E71: Dr. Newton Solano
E72: Director

Sheet Est. Resultado F.
C2: Hospital Regional Ing. Luis L. Bogaert
C3: Estado de Rendimiento Financiero
C4: Del ejercicio terminado al 31 de agosto 2025
C5: (Valores en RD$)
F7: 2025 | H7: =+[1]ESF!H7 -> 2016
C8: Ingresos (Nota 17)
A9: 0035 | D9: Impuestos
A10: 0036 | D10: Ingresos por transacciones con contraprestación | F10: =+Ingresos!B26 -> 7,388,402.98
A11: 0037 | D11: Transferencias
A12: 0038 | D12: Recargos, multas y otros ingresos
C13: Total ingresos | F13: =SUM(F9:F12) -> 7,388,402.98 | H13: =SUM(H9:H12) -> 0
C15: Gastos (Notas 18, 19, 20, 21 y 22)
A16: 0039 | D16: Sueldos, salarios y beneficios a empleados | F16: =+Gastos!B10 -> 0
A17: 0040 | D17: Subvenciones y otros pagos por transferencias | F17: 0
A18: 0041 | D18: Suministros y materiales para consumo | F18: =+Gastos!B41-F17 -> 6,169,267.49
A19: 0042 | D19: Gasto de depreciación y amortización
A20: 0043 | D20: Deterioro del valor de propiedad, planta y equipo
A21: 0044 | D21: Otros gastos
A22: 0045 | D22: Gastos financieros | F22: =+Gastos!B165 -> 118,460.46 | H22: =SUMIF([1]BC!B:B,[1]ERF!A22,[1]BC!G:G) -> 
C23: Total gastos | F23: =SUM(F16:F22) -> 6,287,727.95 | H23: =SUM(H16:H22) -> 
A25: 0046 | D25: Ganancia (pérdida) por diferencia cambiaria | F25: 0 | H25: 0
A27: 0047 | D27: Participación en resultado de asociadas | F27: 0 | H27: 0
C29: Resultados positivos (ahorro) / negativo (desahorro) | F29: =+F13-F23+F25+F27 -> 1,100,675.03 | H29: =+H13-H23+H25+H27 -> 
C31: Atribuible a:
A32: 0048 | D32: Propietarios de la entidad controladora | F32: 0 | H32: 0
A33: 0049 | D33: Intereses minoritarios | F33: 0 | H33: 0
F34: =SUM(F32:F33) -> 0 | H34: =SUM(H32:H33) -> 0
D40: Jean Flores | F40: Lic. Jenniffer Rodríguez
D41: Administrador | F41: Contador
E43: Dr. Newton Solano
E44: Director

Sheet ECAMP
B2: =+[1]ESF!C2 -> Entidad Modelo
B3: Estado de Cambio de Activo / Patrimonio
B4: Del ejercicio terminado al 31 de enero de 2024 y 2025
B5: (Valores en RD$)
E7: Capital Aportado | G7: Cambios en Políticas Contables | I7: Revaluación | K7: Resultados Acumulados | M7: Total Activos Netos / Patrimonio
C8: Saldo al 31 de diciembre de 2015 | E8: 0 | G8: 0 | I8: 0 | M8: =SUM(E8,G8,I8,K8) -> 0
C9: Cambio en políticas contables | G9: 0 | M9: =SUM(E9,G9,I9,K9) -> 0
C10: Revaluación de Propiedad, planta y equipo | I10: 0 | M10: =SUM(E10,G10,I10,K10) -> 0
C11: Ajuste al patrimonio | M11: 0
C12: Resultado del período | M12: 0
C13: Saldo al 31 de diciembre de 2016 | E13: =SUM(E8:E12) -> 0 | G13: =SUM(G8:G12) -> 0 | I13: =SUM(I8:I12) -> 0 | K13: =SUM(K8:K12) -> 0 | M13: =SUM(M8:M12) -> 0
C15: Cambio en políticas contables | G15: 0 | M15: =SUM(E15,G15,I15,K15) -> 0
C16: Revaluación de Propiedad, planta y equipo | I16: 0 | M16: =SUM(E16,G16,I16,K16) -> 0
C17: Efecto del gasto de depreciación de los activos revaluados | I17: 0 | K17: 0 | M17: 0
C18: Ajuste al patrimonio | M18: 0
C19: Resultado del período | M19: 0
C20: Saldo al 31 de Diciembre de 2017 | E20: =SUM(E19,E13) -> 0 | G20: =SUM(G19,G13) -> 0 | I20: =SUM(I19,I13) -> 0 | K20: =SUM(K13:K19) -> 0 | M20: =SUM(M13:M19) -> 0
C23: =+[1]ESF!C65 -> Las notas en las páginas 7 a 20 son parte integral de estos Estados Financieros.

Sheet EST. Flujo Efc
C2: =+[1]ESF!C2 -> Entidad Modelo
C3: Estado de Flujo de Efectivo
C4: =+[1]ERF!C4 -> Del ejercicio terminado al 31 de diciembre del 2017 y 2016
C5: (Valores en RD$)
F7: =+[1]BC!E11 -> 2017 | H7: =+[1]BC!G11 -> 2016
C8: Flujos de efectivo procedentes de actividades operativas
D9: Cobros impuestos | F9: 0 | H9: 0
D10: Contribuciones de la seguridad social | F10: 0 | H10: 0
D11: Cobros por venta de bienes y servicios y arrendamientos | F11: 0 | H11: 0
D12: Cobros de subvenciones, transferencias, y otras asignaciones
D13: Cobros de seguros por primas, reclamos y otros | F13: 0 | H13: 0
D14: Cobros por contratos mantenidos para negocios o intercambio | F14: 0 | H14: 0
D15: Cobros de intereses financieros | F15: 0 | H15: 0
D16: Otros cobros | F16: 0 | H16: 0
D18: Pagos a otras entidades para financiar sus operaciones (Transferencias) | F18: 0 | H18: 0
D19: Pagos a los trabajadores o en beneficio de ellos
D20: Pagos por contribuciones a la seguridad social
D21: Pagos de pensiones y jubilaciones | F21: 0 | H21: 0
D22: Pagos a proveedores
D23: Pagos por contratos mantenidos para negocios o intercambio | F23: 0
D24: Pagos de intereses | F24: 0 | H24: 0
D25: Otros pagos | H25: 0
C26: Flujos de efectivo netos de las actividades de operación | F26: =SUM(F9:F25) -> 0 | H26: =SUM(H9:H25) -> 0
C28: Flujos de efectivo de las actividades de inversión
D29: Cobros por venta de propiedad, planta y equipo | F29: 0 | H29: 0
D30: Cobros por venta de intangibles y otros activos de largo plazo | F30: 0 | H30: 0
D31: Cobros por títulos patrimoniales o de deuda y participación en asociaciones | F31: 0 | H31: 0
D32: Cobros por reembolsos de préstamos o anticipos hechos a terceros | F32: 0 | H32: 0
D33: Cobros por conceptos de contratos a futuro, a plazo, opciones o permuta | F33: 0 | H33: 0
D34: Otros cobros | F34: 0 | H34: 0
D36: Pagos por adquisición de propiedad, planta y equipo
D37: Pagos por adquisición de intangibles y otros activos de largo plazo
D38: Pagos por adquisición de títulos patrimoniales o de deuda y participación en asociaciones | F38: 0 | H38: 0
D39: Pagos por otorgamiento de préstamos o anticipos hechos a terceros | F39: 0 | H39: 0
D40: Pagos por conceptos de contratos a futuro, a plazo, opciones o permuta | F40: 0 | H40: 0
D41: Pagos por costos de construcciones y desarrollos en proceso | F41: 0 | H41: 0
D42: Otros pagos | F42: 0 | H42: 0
C43: Flujos de efectivo netos por las actividades de inversión | F43: =SUM(F29:F42) -> 0 | H43: =SUM(H29:H42) -> 0
C45: Flujos de efectivo de las actividades de financiación
D46: Cobro por emisión de títulos de deudas, bonos | F46: 0 | H46: 0
D47: Cobro por préstamos, pagarés, hipotecas | F47: 0 | H47: 0
D48: Cobro por aporte de accionista | F48: 0 | H48: 0
D49: Cobro de los arrendatarios por contratos de arrendamientos financieros | F49: 0 | H49: 0
D50: Otros cobros | F50: 0 | H50: 0
D52: Pago reembolso en efectivo de los montos recibidos en emisión de títulos de deudas, bonos | F52: 0 | H52: 0
D53: Pago reembolso en efectivo de los montos recibidos en préstamos, pagarés, hipotecas | F53: 0 | H53: 0
D54: Pago reembolso de efectivo recibió por aporte de accionista | F54: 0 | H54: 0
D55: Pago por distribución/dividendos al gobierno | F55: 0 | H55: 0
D56: Pago de los arrendatarios por contratos de arrendamientos financieros | F56: 0 | H56: 0
D57: Otros pagos | F57: 0 | H57: 0
C58: Flujos de efectivo netos por las actividades de financiación | F58: =SUM(F46:F57) -> 0 | H58: =SUM(H46:H57) -> 0
C60: Incremento/(Disminución) neta en efectivo y equivalentes al efectivo | F60: =+F26+F43 -> 0 | H60: =SUM(H26,H43,H58) -> 0
C61: Efectivo y equivalentes al efectivo al principio del período
C62: Efectivo y equivalentes al efectivo al final del período | F62: =SUM(F60:F61) -> 0 | H62: =SUM(H60:H61) -> 0
C65: =+[1]ESF!C65 -> Las notas en las páginas 7 a 20 son parte integral de estos Estados Financieros.
D68: Diferencia para control debe ser cero (0) | F68: =+F62-[1]BC!J14 -> (23,074,686) | H68: =+H62-[1]BC!M14 -> (192,226)

Sheet Efectivo
B1: Hospital Regional Ing. Luis L. Bogaert
B2: Nota # 7: Efectivo Caja y Bancos
B3: Del ejercicio terminado al 31 de agosto del 2025
B4: (Valores en RD$)
A7: # Cta. | B7: Nombre de cuenta
B10: Caja Chica | C10: 0
A11: 300105134 | B11: Operaciones Ex PSS
B12: Fondo Salud Ex-PSS
A13: 160-112014 | B13: Servicio Nacional de Salud (Fondos Senasa) | C13: 0
A14: 314-0000776 | B14: Fondo Operativo | C14: 7,274.89
A15: 240-020561-7 | B15: Cuenta Nueva Ranchito
A16: 314-00145-4 | B16: Fondos Especiales CDC
A17: 314-0000920-0 | B17: Cuenta VIH
A18: 314-000181-0 | B18: Cuenta Tuberculosis
B19: Venta de Servicios | C19: 7,626,912.51
B20: Cuenta Proyecto FGRSS
B21: Anticipo Financieros
B22: Cta. Nomina | C22: 0
B23: Total balance cuentas de bancarias del Reservas | C23: =SUM(C13:C19) -> 7,634,187.40
A26: # Cta. | B26: Tesoreria Nacional | C26: Monto
A27: 9995028000 | B27: Fondo de la Direccion Central Servicio Nacional de Salud
A28: 9995028001 | B28: Sud- Cuenta Cuota de Pago Direccion Central Servicio Nacional de Salud | C28: 0
A29: 2110003000 | B29: Cuenta Direccion Cental y/o Regional SNS | C29: 0
A30: 9998014000 | B30: Recaudacion Establecimiento de Salud PSS
B31: Cuenta Colectora Recursos Directos PSS
A32: 100198000 | B32: Sud- Cuenta Disponibilidad Direccion Central Servicio Nacional de Salud
A33: 100198001 | B33: Sub-Cuota de Pago Direccion Central Servicio Nacional de Salud
B34: Total balance cuentas de bancarias tesoreria nacional | C34: =SUM(C27:C33) -> 0
B36: Total efectivo y equivalentes de efectivo | C36: =+C23+C34 -> 7,634,187.40

Sheet Cuenta por Cobrar
A1: Hospital Regional Ing. Luis L. Bogaert
A2: Notas # 8: Cuenta Por Cobrar
A3: Del ejercicio terminado al 31 de agosto del 2025
A4: (Valores en RD$)
A8: Detalle | B8: Monto
A11: Cuentas Por Cobrar Colaboradores
A12: Otras Cuentas Por Cobrar (Retencion IR-3)
A13: Cuentas por Cobrar Proyecto FGBRSS
A14: Cuentas por Cobrar Ventas de Servicios | B14: 12,641,825.49
A15: Anticipos financieros
A16: Total Cuentas Por Cobrar | B16: =+B11+B12+B13+B14+B15 -> 12,641,825.49

Sheet Inventario
A1: Hospital Regional Ing. Luis L. Bogaert
A2: Nota # 9: Inventario
A3: Del ejercicio terminado al 31 de julio del año 2025
A4: (Valores en RD$)
A7: Descripción | B7: Monto
A10: Inventario de Útiles y Suministro de Oficina
A11: Inventario Medicamentos
A12: Inventario de Material Med. Quirurjicos.
A13: Total Inventario | B13: =SUM(B10:B12) -> 0

Sheet Mobiliario Eq. Ofc.
A1: Hospital Regional Ing. Luis L. Bogaert
A2: Nota #10: Mobiliarios y Equipos
A3: Del ejercicio terminado al 3 de julio del año 2025
A4: (Valores en RD$)
A8: Mobiliarios y Equipos de Oficinas | B8: Monto
A10: Costos:
A11: Saldos al inicio
A12: Adiciones
A13: Retiros | B13: 0
A14: Saldo al final | B14: =+B10+B11+B12-B13 -> 0
A17: Equipos de Transporte y Otros | B17: SNS
A18: Costos:
A19: Saldos al inicio
A20: Adiciones
A21: Retiros | B21: 0
A22: Saldo al final | B22: =+B18+B19+B20-B21 -> 0
A26: Depreciación acumulada: | B26: Cede Central
B27: SNS
A28: Saldos al inicio Mob. Y Eq.
A29: Saldos al inicio de Equipo de Trans.
A30: Cargo del período Mob. Y Eq.
A31: Cargo del período Equipo de Trans.
A32: Retiros Mob. Y Equipo | B32: 0
A33: Retiros Equipo de Trans.
A34: Saldo al final | B34: =SUM(B28:B33) -> 0
A35: Mobiliarios y equipos, neto | B35: =+B14+B22-B34 -> 0

Sheet CXP Corto plazo
A1: Hospital Regional Ing. Luis L. Bogaert
A2: Nota # 11: Cuentas por Pagar a Corto Plazo
A3: Del ejercicio terminado al 31 de agosto del 2025
A4: (Valores en RD$)
A8: Detalle | B8: Monto
A11: Cuentas por Pagar Suplidores | B11: 2,267,872.10
A12: Total Cuentas Por Pagar a Corto Plazo | B12: =+B11 -> 2,267,872.10

Sheet Retenciones y Acum.
A1: Hospital Regional Ing. Luis L. Bogaert
A2: Nota #12: Retenciones y Acumulaciones
A3: Del ejercicio terminado al 31 de agosto 2025
A4: (Valores en RD$)
A8: Detalle | B8: Monto
A11: Retenciones ISR Empleados
A12: Retencion ISR 5% | B12: 72,495.38
A13: Retenciones ISR 10% | B13: 0
A14: Retencion ITBIS
A15: Infotep
A16: Retencion Seguridad Social
A17: Retencion de Supervision de Obras
A18: Retencion ley 6-86 Pensiones
A19: Total Retenciones y Acumulaciones | B19: =SUM(B11:B18) -> 72,495.38

Sheet Benef. Empl x p Corto Plazo
A1: Hospital Regional Ing. Luis L. Bogaert
A2: Nota # 13: Beneficios a Empleados por Pagar a Corto Plazo
A3: Del ejercicio terminado Al 31 de agosto del 2025
A4: (Valores en RD$)
A7: Detalle | B7: Monto
A10: Sueldos Por Pagar
A11: Viaticos Empleados | B11: 24,100.00
A12: Prestaciones Laborales Por Pagar Empleados
A13: Total Beneficios a Empleados por Pagar a Corto Plazo | B13: =+B10+B11+B12 -> 24,100.00

Sheet CXP Largo Plazo
A1: Hospital Regional Ing. Luis L. Bogaert
A2: Nota #14: Cuentas por Pagar Largo Plazo
A3: Del ejercicio terminado Al 31 de agosto del 2025
A4: (Valores en RD$)
A8: Detalle | B8: Monto
A11: Cuentas por Pagar Hospitalaria Largo Plazo | B11: 1,734,190.21
A13: Total Cuentas Por Pagar a Largo Plazo | B13: =SUM(B11:B12) -> 1,734,190.21

Sheet Benef. Empl x pagar Larg. Plaz
A1: Hospital Regional Ing. Luis L. Bogaert
A2: Nota #15: Beneficios a Empleados por Pagar Largo Plazo
A3: Del ejercicio terminado Al 31 de agosto del 2025
A4: (Valores en RD$)
A7: Detalle | B7: Monto
A10: Sueldos Por Pagar
A11: Viaticos Empleados | B11: 0
A12: Prestaciones Laborales Por Pagar Empleados
A13: Total Cuentas Por Pagar Largo Plazo | B13: =+B10+B11+B12 -> 0

Sheet Patrimonio
A1: Hospital Regional Ing. Luis L. Bogaert
A2: Nota #16: Patrimonio
A3: Del ejercicio terminado al 31 de agosto 2025
A4: (Valores en RD$)
A8: Detalle | B8: Monto
A11: Capital | B11: =+'Est. Situacion F.'!F55 -> 15,076,680.17
A12: Resultados positivos (ahorro)/negativo (desahorro) | B12: =+'Est. Situacion F.'!F57 -> 1,100,675.03
A13: Resultado acumulado
A14: Total Patrimonio Neto

Sheet Ingresos
A1: Hospital Regional Ing. Luis L. Bogaert
A2: Nota 17: Ingresos
A3: Del ejercicio terminado al 31 de agosto 2025
A4: (Valores en RD$)
A7: Ingresos con Contraprestacion de Servicios | B7: Monto
A9: Venta de Servicios | B9: =4651133.9+195000+42300 -> 4,888,433.90
A10: Sub-Total | B10: =B9 -> 4,888,433.90
A12: Ingresos sin Contraprestacion de Servicios | B12: Monto
A13: Otros Ingresos | B13: 0
A14: Operaciones Ex PSS
A15: Fondo Salud Ex-PSS
A16: Fondo Operativo | B16: 2,499,969.08
A17: Cuenta Nueva Ranchito
A18: Fondos Especiales CDC
A19: Cuenta VIH
A20: Cuenta Tuberculosis
A21: Cuenta Proyecto FGRSS
A22: Anticipo Financieros
A23: Cuenta Direccion Central SNS
A24: Sud- Cuenta Disponibilidad Direccion Central Servicio Nacional de Salud
A25: Sub-Total | B25: =SUM(B13:B24) -> 2,499,969.08
A26: Total | B26: =B10+B25 -> 7,388,402.98

Sheet Gastos
A2: Hospital Regional Ing. Luis L. Bogaert
A3: Gastos Generales
A4: Del Ejercicio Terminado
A5: (Valores en RD$)
B7: Nombre del hospital | C7: Sto. Dgo | D7: San Cristobal | E7: Santiago | F7: San Francisco | G7: Barahona | H7: San Pedro | I7: San Juan | J7: Mao | K7: Vega
C8: Metropolitano | D8: Valdesia | E8: Norcentral | F8: Nordeste | G8: Enriquillo | H8: Este | I8: Valle | J8: Cibao Occidental | K8: Cibao Central
A9: Descripcion | C9: 0 | D9: I | E9: II | F9: III | G9: IV | H9: V | I9: VI | J9: VII | K9: VIII
A10: Sueldos, Salarios y Beneficios a Empleados | B10: =+B11+B37 -> 0
A11: Servicio Personales | B11: =+B12+B25 -> 0 | D11: 35,118,106 | E11: 45,139,140 | F11: 31,819,977 | G11: 20,892,619 | H11: 110,757,991 | J11: 11,861,307 | K11: 24,536,480
A12: Remuneraciones | B12: =SUM(B13:B24) -> 0
A13: Sueldos fijos | B13: 0
A14: Sueldos al personal contratado y/o igualado | B14: 0 | C14: 29,430,855 | I14: 329,500
A15: Sueldos al personal fijo en trámite de pensiones | B15: 0
A16: Sueldo de personal nominal | B16: 0 | I16: 13,203,892
A17: Sueldo Por Suplencias | B17: 0 | I17: 112,552
A18: Sueldos al personal por servicios especiales | B18: 0
A19: Sueldo anual no. 13 | B19: 0
A20: Prestaciones económicas | B20: 0
A21: Sueldo anual no. 13 | B21: 0 | C21: 49,738
A22: Proporción de vacaciones no disfrutadas | B22: 0 | C22: 34,610
A23: Incentivos y escalafón | B23: 0
A24: Prestación laboral por desvinculación | B24: 0 | C24: 199,023
A25: Sobresueldo | B25: =SUM(B26:B34) -> 0 | I25: 2,818,598
A26: Compensación por horas extraordinarias | B26: 0
A27: Compensación por servicio de seguridad
A28: Compensaciones por resultado | C28: 9,319,591
A29: Compensación por distancia
A30: Compensaciones especiales | B30: 0
A31: Primas por antigüedad
A32: Pago de horas extraordinarias, Horas extraordinarias fin de año (Reglamento 523-09) | B32: 0
A33: Insentivo por Rendimiento Individual y Bono por desempeño | B33: 0
A34: Dietas en el país | B34: 0
A35: GRATIFICACIONES Y BONIFICACIONES | B35: =SUM(B36) -> 0
A36: Gratificaciones por aniversario de institución
A37: Contribuciones de la Seguridad Social y Riesgo Laboral | B37: =SUM(B38:B40) -> 0
A38: Contribuciones al seguro de salud | C38: 1,814,033
A39: Contribuciones al seguro de pensiones | C39: 1,816,538
A40: Contribuciones al seguro de riesgo laboral | C40: 308,912
A41: Suministros y materiales para consumo | B41: =+B42+B97 -> 6,169,267.49 | D41: 19,429,803 | G41: 12,720,320
A42: Servicios No Personales | B42: =+B43+B50+B56+B61+B67+B70+B81 -> 645,898.82 | D42: 2,027,243 | E42: 14,495,469 | F42: 5,545,998 | G42: 3,935,003 | H42: 12,698,046 | J42: 6,326,375 | K42: 1,657,006
A43: Sevicios Basicos | B43: =SUM(B44:B49) -> 147,145.90 | I43: 1,160,229
A44: Servicios telefónico de larga distancia | B44: 0
A45: Teléfono local | B45: 114,571.08 | C45: 2,467,472
A46: Telefax y correo | B46: 4,079.82
A47: Servicio de internet y televisión por cable | B47: 9,995.00 | C47: 1,140,547 | I47: 780
A48: Recolección de residuos sólidos | B48: 0
A49: Agua | B49: 18,500.00 | C49: 338,744 | I49: 923
A50: Publicidad, Impresión y Encuadernacion | B50: =SUM(B51:B55) -> 266,152.92
A51: Publicidad y propaganda | B51: 51,145.92
A52: Impresión y encuadernación | B52: 169,507.00 | C52: 9,403,892 | I52: 2,222,080
A53: Viaticos | B53: 0
A54: Viáticos dentro del país | B54: 45,500.00 | C54: 267,100 | I54: 489,966
A55: Viáticos fuera del país | B55: 0
A56: Transporte y Almacenajes | B56: =SUM(B57:B60) -> 0
A57: Pasajes | B57: 0 | I57: 7,500
A58: Peajes | I58: 650
A59: Almacenaje | B59: 0 | I59: 20,000
A60: Fletes | B60: 0 | C60: 76,700 | I60: 3,500
A61: Alquileres y Rentas | B61: =SUM(B62:B66) -> 28,500.00
A62: Alquiler de equipo de oficina y muebles | B62: 0 | I62: 36,356
A63: Alquileres de equipos de transporte, tracción y elevación | B63: 28,500.00
A64: Alquilleres y rentas de edificios y locales | B64: 0 | I64: 1,291,043
A65: Alquiler de equipo para computación
A66: Otros alquileres | B66: 0 | C66: 7,097,772 | I66: 8,100
A67: Seguros | B67: =SUM(B68:B69) -> 0
A68: Seguro de bienes muebles
A69: Seguros de personas | B69: 0 | I69: 802,200
A70: Conserv., Reps. Menores e Instalaciones Temp. | B70: =SUM(B71:B79) -> 7,000.00
A71: Reparaciones de maquinarias y equipos | B71: 0 | I71: 488,352
A72: Servicios de construccion y reparacion menores | I72: 81,930
A73: Obras menores en edificaciones | C73: 1,294,196 | I73: 821,403
A74: Servicios especiales de mantenimiento y reparación | B74: 0
A75: Servicios de pintura y derivados con fin de higiene y embellecimiento | B75: 0 | C75: 561,297
A76: Reparaciones de obras menores | B76: 0
A77: Mant. y rep. De equipo de oficina y muebles | B77: 0 | C77: 1,211,846
A78: Mantenimiento y reparación de equipos sanitarios y de laboratorio | B78: 7,000.00 | C78: 338,601
A79: Mantenimiento y reparación de equipos de transporte, tracción y elevación | B79: 0 | C79: 1,329,548
A80: Pinturas, Lacas, Barnices, Diluyentes y Absorbentes para Pinturas
A81: Otros Servicios No Personales | B81: =SUM(B82:B96) -> 197,100.00 | I81: 1,214,524
A82: Servicios sanitarios médicos y veterinarios | B82: 0
A83: Fumigación | B83: 0
A84: Insecticidas, Fumigantes y Otros | B84: 0
A85: Limpieza e higiene | B85: 0 | I85: 12,314
A86: Eventos generales | B86: 0
A87: Organización de eventos y festividades | I87: 1,416
A88: Servicios jurídicos | B88: 0
A89: Gastos judiciales | B89: 0
A90: Servicios de capacitación | B90: 0 | C90: 424,960
A91: Otros servicios técnicos profesionales | B91: 187,100.00 | I91: 97,291
A92: Impuestos | B92: 0 | I92: 175
A93: Recolección de residuos sólidos | B93: 0
A94: Servicios de informática y sistemas computarizados | B94: 10,000.00
A95: Servicios Varios | B95: 0 | C95: 174,463
A96: Otros gastos operativos de Instituciones empresariales | B96: 0 | I96: 15,000
A97: Materiales y Suministro | B97: =+B98+B102+B106+B117+B129+B140+B153+B171 -> 5,523,368.67 | E97: 20,818,281 | F97: 9,645,178 | H97: 16,082,211 | J97: 6,682,896 | K97: 17,465,071
A98: Alimentos y Productos Agroforestales | B98: =SUM(B99:B101) -> 555,720.34
A99: Alimentos y bebidas para personas | B99: =77948.5+477771.84 -> 555,720.34 | C99: 1,945,814 | I99: 460,280
A100: Productos forestales | B100: 0 | C100: 17,110
A101: Madera y corcho y sus manufacturas | B101: 0 | I101: 104,122
A102: Textiles y Vestuarios | B102: =SUM(B103:B105) -> 0
A103: Hilados y telas | B103: 0 | I103: 3,762
A104: Acabados textiles | B104: 0 | I104: 45,058
A105: Prendas de vestir | B105: 0 | C105: 11,547
A106: Productos de Papel, Carton e Impreso | B106: =SUM(B107:B116) -> 1,067,357.40
A107: Papel de escritorio | B107: 0 | C107: 106,029
A108: Productos de papel y cartón | B108: 45,750.00 | C108: 248,950 | I108: 8,066
A109: Productos de artes gráficas | B109: 0 | C109: 384,503
A110: Productos medicinales para uso humano | B110: =1021607.4 -> 1,021,607.40 | C110: 5,780,385 | I110: 2,419,313
A111: Productos de Cuero, Caucho y Plasticos | B111: 0 | I111: 46,420
A112: Artículos de cuero | B112: 0
A113: Libros, revistas y periódicos | B113: 0
A114: Llantas y neumáticos | B114: 0 | C114: 28,305 | I114: 13,636
A115: Artículos de caucho | B115: 0 | I115: 1,225
A116: Artículos y Materiales Plástico | B116: 0 | I116: 49,237
A117: Productos de Minerales, Metalicos y No Metalicos | B117: =SUM(B118:B128) -> 32,000.00 | I117: 633,805
A118: Metales y piedras preciosas | B118: 0
A119: Productos de cemento | B119: 0
A120: Productos de yeso | B120: 0
A121: Productos de vidrio
A122: Productos ferrosos | B122: 0
A123: Productos de loza | B123: 0
A124: Productos metálicos y sus derivados | B124: 0 | I124: 286,878
A125: Herramientas menores | B125: 0 | C125: 356,152
A126: Productos de hojalata | B126: 0
A127: Accesorios de metal | B127: =32000 -> 32,000.00
A128: Piedra, arcilla y arena | B128: 0
A129: Combustibles, Lubricantes, Productos Quimicos y Conexos | B129: =SUM(B130:B139) -> 2,844,243.46
A130: Gas GLP | B130: 58,082.00
A131: Gasolina | B131: 865,488.20 | C131: 4,639,996
A132: Gasoil | B132: 49,815.00
A133: Aceites y grasas | I133: 5,925
A134: Lubricantes | B134: 0 | I134: 3,268,556
A135: Productos fotoquímicos | B135: 0
A136: Productos químicos de laboratorio y de uso personal | B136: 1,855,333.34
A137: Insecticidas, fumigantes y otros | B137: 0
A138: Pinturas, lacas, barnices, diluyentes y absorbentes para pinturas | B138: =15524.92 -> 15,524.92
A139: Productos químicos y conexos | B139: 0 | I139: 1,023,151
A140: Productos y Utiles Varios | B140: =SUM(B141:B152) -> 774,885.69
A141: Material para limpieza | B141: 36,414.76 | C141: 1,435,525 | I141: 1,079,808
A142: Útiles de escritorio, oficina e informática | B142: 12,165.08 | C142: 3,796,372
A143: Utiles menores médico quirurgicos y de laboratorio | B143: 678,200.27 | C143: 128,217 | I143: 2,280,433
A144: Útiles destinados a actividades deportivas y recreativas | B144: 0
A145: Productos eléctricos y afines | B145: 0 | C145: 547,893 | I145: 200,958
A146: Productos y utiles veterinarios | B146: 0
A147: Productos y Utiles Varios | B147: 0 | C147: 977,370 | I147: 374,273
A148: Otros repuestos y accesorios menores | B148: 0 | I148: 25,889
A149: Bonos para útiles diversos | B149: 0
A150: Minerales | B150: 0
A151: Útiles de cocina y comedor | B151: 48,105.58 | C151: 294,453
A152: Otros | B152: 0
A153: Transferencias Corrientes | B153: =SUM(B154:B160) -> 0
A154: Ayudas y donaciones ocacionales a hogares y personas | B154: 0
A155: Becas nacionales | B155: 0
A156: Becas extranjeras | B156: 0
A157: Transferencia Por Disminucion Deuda Publica y Otras | B157: 0
A158: Transferencias corrientes a asociaciones sin fines de lucro | B158: 0
A159: Transferencias corrientes a Instituciones Públicas de la Seg. Soc. para Servicios Personales | B159: 0
A160: Anticipos Financieros | B160: 0
A161: Gasto de depreciación y amortización | B161: =SUM(B162:B164) -> 0
A162: Gasto de depreciación | B162: 0
A163: Gasto de amortización | B163: 0
A164: Pérdida por retiro | B164: 0
A165: Gasto Financiero | B165: =SUM(B166:B170) -> 118,460.46
A166: Comisiones y gastos bancarios | B166: =9900.46 -> 9,900.46 | C166: 174,731 | I166: 1,550
A167: Gasto de amortización
A168: Pérdida por retiro
A169: Bienes Muebles, Inmuebles e Intangibles | B169: 0 | F169: 3,395,210
A170: Obras | B170: 108,560.00 | F170: 713,804
A171: Otros Gastos Institucionales | B171: =SUM(B172:B183) -> 249,161.78 | D171: 15,766,512 | E171: 4,124,655 | H171: 4,939,911
A172: Mueble y Equipos de Oficina | B172: 0 | C172: 7,149,694
A173: Equipos de Transportes y Reparaciones | B173: 0
A174: Equipos de Tecnologia de la información y Comunicación | B174: 0 | C174: 2,505,967
A175: Electrodomésticos | B175: 0 | C175: 155,760
A176: Equipos Medicos y de Laboratorio | B176: 249,161.78 | C176: 6,950,570
A177: Instrumentos Medicos | B177: 0 | C177: 361,006
A178: Maquinaria y Equipos Industriales | B178: 0
A179: Sistema y Equipos de Climatización | B179: 0 | C179: 441,043
A180: Equipos y Aparatos Audiovisuales | B180: 0
A181: Equipos de Cominicación, Telecomuniciones y Señalamiento | B181: 0
A182: Equipos de Seguridad | B182: 0
A183: Equipos de Generacion Electica | B183: 0 | C183: 1,347,864
A184: Totales | B184: =+B10+B41+B161+B165 -> 6,287,727.95 | C184: =SUM(C11:C183) -> 108,885,694 | D184: =SUM(D11:D183) -> 72,341,664 | E184: =SUM(E11:E183) -> 84,577,545 | F184: =SUM(F10:F183) -> 51,120,166 | G184: =SUM(G11:G183) -> 37,547,941 | H184: =SUM(H11:H183) -> 144,478,159 | I184: =SUM(I10:I183) -> 37,572,618 | J184: =SUM(J11:J183) -> 24,870,578 | K184: =SUM(K10:K183) -> 43,658,557
B188: =SUM(B186:B187) -> 0
